bitfinex/quotes_SOLUSD_20220226
["timestamp","ask_amount","ask_price","bid_price","bid_amount"]
[1645867182776,1.8783089,90.869,90.78,192.3123]
[1645867182977,13.21,90.91,90.781,0.25]
[1645867183278,23.1222,90.888,90.782,2.86292427]
[1645867183479,46.97994135,90.88,90.783,0.25]
[1645867183879,46.97994135,90.88,90.784,2.86292427]
[1645867184078,0.25,90.874,90.786,175.79]
[1645867184278,0.25,90.874,90.791,109.7]
[1645867184482,0.25,90.874,90.79,79.3]
[1645867184483,0.25,90.874,90.801,109.7]
[1645867184879,1.62199277,90.887,90.801,109.7]
[1645867185080,1.62199277,90.887,90.802,0.25]
[1645867185278,50.07656199,90.886,90.803,109.7]
[1645867185481,1.81608384,90.885,90.82,16.5134]
[1645867185679,1.81608384,90.885,90.821,50.02763759]
[1645867186386,0.25,90.884,90.821,50.02763759]
[1645867186982,0.25,90.884,90.83,16.5133]
[1645867187181,0.25,90.884,90.83,24.6633]
[1645867189184,0.25,90.884,90.83,134.3633]
[1645867189384,1.47530803,90.913,90.83,134.3633]
[1645867189585,1.47530803,90.913,90.85,16.5078]
[1645867189985,51.06764633,90.912,90.851,25.75279033]
[1645867190183,1.85891662,90.911,90.851,25.75279033]
[1645867190784,1.85891662,90.911,90.81,109.7]
[1645867190984,1.85891662,90.911,90.812,0.25]
[1645867191608,51.06764633,90.912,90.788,2.86292427]
[1645867191609,16.5129,90.91,90.79,13.21]
[1645867191807,109.7,90.908,90.795,44.38307077]
[1645867192110,66.09,90.903,90.795,44.38307077]
[1645867192308,21.07056653,90.888,90.795,44.38307077]
[1645867192508,13.21,90.88,90.795,44.38307077]
[1645867192710,1.79214746,90.879,90.795,44.38307077]
[1645867192906,24.15108886,90.879,90.795,44.38307077]
[1645867193106,1.89280049,90.878,90.795,44.38307077]
[1645867193307,4.402,90.877,90.795,44.38307077]
[1645867193508,8.50199895,90.877,90.795,44.38307077]
[1645867193810,2.49411649,90.876,90.795,44.38307077]
[1645867194010,47.22035219,90.874,90.795,44.38307077]
[1645867194212,13.21,90.87,90.795,44.38307077]
[1645867194415,2.00568888,90.869,90.795,44.38307077]
[1645867194614,25.04194181,90.859,90.795,44.38307077]
[1645867194811,23.34921989,90.859,90.795,44.38307077]
[1645867195011,1.86902316,90.858,90.795,44.38307077]
[1645867195211,2.49411649,90.876,90.795,44.38307077]
[1645867195212,2.01309674,90.869,90.796,109.7]
[1645867195412,24.6467,90.915,90.796,109.7]
[1645867195413,4.402,90.9,90.796,109.7]
[1645867195612,1.62373958,90.888,90.795,44.38307077]
[1645867195813,16.5196,90.88,90.8,16.5183]
[1645867196212,1.4773919,90.878,90.795,44.38307077]
[1645867196612,0.25,90.877,90.795,44.38307077]
[1645867196813,16.5211,90.87,90.79,16.5203]
[1645867197016,67.9624777,90.869,90.7,13.21]
[1645867197214,67.9624777,90.869,90.694,5.75186361]
[1645867197215,1.70157714,90.868,90.694,5.75186361]
[1645867197412,1.65327112,90.858,90.67,55.1229]
[1645867197612,66.09,90.849,90.67,55.1229]
[1645867197813,66.09,90.839,90.732,46.088457]
[1645867198012,16.538,90.82,90.746,29.69197092]
[1645867198211,16.538,90.82,90.67,55.1229]
[1645867198212,13.21,90.81,90.693,109.7]
[1645867198412,111.24851916,90.809,90.65,68.3415]
[1645867198611,1.53679517,90.808,90.65,55.1315]
[1645867198811,1.53679517,90.808,90.67,66.09]
[1645867199011,119.406,90.807,90.656,16.3385]
[1645867199214,119.406,90.807,90.634,48.30862018]
[1645867199215,2.49411649,90.749,90.634,48.30862018]
[1645867199416,13.21,90.74,90.634,48.30862018]
[1645867199720,2.85739216,90.748,90.634,48.30862018]
[1645867199721,33.24334004,90.729,90.634,48.30862018]
[1645867199914,13.21,90.72,90.634,48.30862018]
[1645867200116,4.41,90.719,90.634,48.30862018]
[1645867200416,1.96492083,90.699,90.634,48.30862018]
[1645867200616,4.41,90.698,90.634,48.30862018]
[1645867202218,1.96492083,90.699,90.634,48.30862018]
[1645867204418,4.41,90.707,90.634,48.30862018]
[1645867205016,4.41,90.725,90.634,48.30862018]
[1645867205615,16.5493,90.72,90.634,48.30862018]
[1645867205817,4.41,90.726,90.635,0.25]
[1645867206017,55.148,90.77,90.635,0.25]
[1645867206018,13.21,90.75,90.635,3.07736311]
[1645867206417,1.6267536,90.749,90.635,0.25]
[1645867206618,31.16272007,90.748,90.635,0.25]
[1645867206820,1.82847518,90.747,90.635,0.25]
[1645867207217,0.25,90.746,90.635,0.25]
[1645867207419,16.5456,90.74,90.634,48.30862018]
[1645867207617,2.01677962,90.739,90.634,48.30862018]
[1645867207818,4.41,90.738,90.634,48.30862018]
[1645867208017,8.76207494,90.738,90.634,48.30862018]
[1645867208419,16.5489,90.72,90.61,113.0]
[1645867208619,16.5489,90.72,90.513,319.90962233]
[1645867208620,13.21,90.71,90.574,113.0]
[1645867208818,13.21,90.71,90.534,75.3189]
[1645867208819,67.5653449,90.709,90.534,75.3189]
[1645867209024,175.79,90.689,90.515,75.6658]
[1645867209217,109.7,90.679,90.495,75.3189]
[1645867209420,122.79873719,90.679,90.496,49.67993394]
[1645867209618,109.7,90.677,90.496,57.53556605]
[1645867209824,48.99420852,90.676,90.556,113.0]
[1645867210021,16.5598,90.67,90.557,50.89870298]
[1645867210220,1.53534624,90.669,90.558,0.25]
[1645867210718,1.53534624,90.669,90.557,50.89870298]
[1645867211418,1.53534624,90.669,90.558,0.25]
[1645867211621,0.25,90.668,90.558,0.25]
[1645867212219,4.414,90.667,90.558,0.25]
[1645867212420,4.414,90.667,90.558,112.51019008]
[1645867212621,4.414,90.667,90.561,109.7]
[1645867212819,47.3636,90.676,90.562,3.22130286]
[1645867213422,1.50222831,90.675,90.562,3.22130286]
[1645867213724,0.25,90.674,90.57,16.5553]
[1645867213922,0.25,90.674,90.571,49.21345997]
[1645867214121,0.25,90.674,90.571,48.96345997]
[1645867214122,13.21,90.67,90.571,48.96345997]
[1645867214324,1.84654546,90.669,90.571,48.96345997]
[1645867214522,4.3522801,90.669,90.589,113.0]
[1645867214724,25.9855012,90.668,90.59,45.25261068]
[1645867214924,1.85796473,90.667,90.59,45.25261068]
[1645867215125,4.413,90.666,90.59,45.25261068]
[1645867215527,16.562,90.66,90.59,45.25261068]
[1645867215725,1.87067382,90.659,90.59,45.25261068]
[1645867216928,36.4963497,90.658,90.59,45.25261068]
[1645867217228,1.73282141,90.657,90.59,45.25261068]
[1645867217427,4.413,90.656,90.59,45.25261068]
[1645867218530,1.50775228,90.657,90.59,45.25261068]
[1645867222332,16.5628,90.65,90.59,45.25261068]
[1645867222534,7.86010133,90.649,90.59,45.25261068]
[1645867222736,1.87330653,90.649,90.59,45.25261068]
[1645867223832,1.94241112,90.647,90.59,45.25261068]
[1645867227135,16.5637,90.64,90.59,45.25261068]
[1645867227336,1.50132933,90.639,90.59,45.25261068]
[1645867227739,30.75784265,90.648,90.59,45.25261068]
[1645867227938,5.90216649,90.647,90.59,45.25261068]
[1645867228537,16.5655,90.63,90.59,45.25261068]
[1645867228736,1.95243187,90.629,90.59,45.25261068]
[1645867228937,4.414,90.647,90.59,45.25261068]
[1645867229541,4.414,90.657,90.59,45.25261068]
[1645867229738,16.5626,90.65,90.59,45.25261068]
[1645867229940,1.9117777,90.649,90.59,45.25261068]
[1645867230342,1.66877373,90.655,90.59,45.25261068]
[1645867230740,0.25,90.654,90.59,45.25261068]
[1645867230940,16.5642,90.64,90.59,45.25261068]
[1645867232241,1.73377394,90.639,90.59,45.25261068]
[1645867232644,16.5642,90.64,90.59,45.25261068]
[1645867232866,1.53545694,90.639,90.59,45.25261068]
[1645867233064,16.5642,90.64,90.59,45.25261068]
[1645867233665,16.5605,90.66,90.59,45.25261068]
[1645867234064,1.838141,90.658,90.59,45.25261068]
[1645867235370,4.413,90.672,90.59,154.95261068]
[1645867235970,16.5564,90.68,90.59,154.95261068]
[1645867236369,16.5564,90.68,90.59,237.59781068]
[1645867236569,23.4454,90.698,90.591,2.66908659]
[1645867236772,0.25,90.697,90.59,221.04261068]
[1645867237370,30.77275495,90.697,90.59,221.04261068]
[1645867237569,23.4454,90.698,90.59,221.04261068]
[1645867237772,4.412,90.716,90.602,2.81833192]
[1645867238074,4.412,90.716,90.603,0.25]
[1645867238270,1.81954644,90.72,90.603,0.25]
[1645867238670,31.45086212,90.719,90.603,0.25]
[1645867238869,22.5929,90.718,90.603,0.25]
[1645867239070,1.75404033,90.717,90.601,109.7]
[1645867239271,1.75404033,90.717,90.602,0.25]
[1645867239471,16.5501,90.71,90.62,126.2497]
[1645867239672,1.60454578,90.709,90.621,56.71899194]
[1645867240073,0.25,90.708,90.621,56.71899194]
[1645867240279,2.75413665,90.708,90.621,56.71899194]
[1645867240674,30.72876351,90.707,90.621,56.71899194]
[1645867240871,1.64063762,90.706,90.621,56.71899194]
[1645867241073,10.98295247,90.705,90.621,56.71899194]
[1645867241274,1.81164967,90.704,90.621,56.71899194]
[1645867241472,16.5511,90.7,90.621,56.71899194]
[1645867241672,1.75958679,90.699,90.621,56.71899194]
[1645867242075,4.412,90.704,90.621,56.71899194]
[1645867242273,5.92853677,90.704,90.621,56.71899194]
[1645867242474,8.42856663,90.704,90.621,56.71899194]
[1645867242677,2.50002986,90.703,90.621,56.71899194]
[1645867242874,4.41,90.702,90.621,56.71899194]
[1645867243286,2.50002986,90.701,90.621,56.71899194]
[1645867243478,31.45086212,90.679,90.621,56.71899194]
[1645867243873,1.54100949,90.678,90.621,56.71899194]
[1645867244275,16.5554,90.68,90.621,56.71899194]
[1645867244774,1.79177015,90.679,90.621,56.71899194]
[1645867245375,41.24179394,90.678,90.621,56.71899194]
[1645867245574,1.99346809,90.677,90.621,56.71899194]
[1645867246175,41.24179394,90.678,90.621,56.71899194]
[1645867246377,1.48791614,90.677,90.621,56.71899194]
[1645867247276,41.24179394,90.678,90.621,56.71899194]
[1645867247478,16.5554,90.68,90.621,56.71899194]
[1645867248281,39.9479932,90.679,90.621,56.71899194]
[1645867248477,41.50120766,90.679,90.621,56.71899194]
[1645867248678,1.72194482,90.678,90.621,56.71899194]
[1645867249881,1.97645191,90.678,90.621,56.71899194]
[1645867250280,1.75502094,90.669,90.56,55.1859]
[1645867250480,1.75502094,90.669,90.568,0.25]
[1645867250887,1.54528094,90.678,90.568,0.25]
[1645867251181,47.653,90.676,90.568,0.25]
[1645867251380,6.01114569,90.675,90.568,0.25]
[1645867251580,6.01114569,90.675,90.563,0.25]
[1645867252381,1.59814569,90.675,90.563,0.25]
[1645867252583,16.5593,90.66,90.571,109.7]
[1645867252781,1.59814569,90.675,90.572,0.25]
[1645867253784,16.5563,90.67,90.581,109.7]
[1645867254782,16.5563,90.67,90.572,0.25]
[1645867254783,16.5563,90.67,90.583,109.7]
[1645867255285,36.91121716,90.684,90.591,109.7]
[1645867255482,68.39,90.71,90.591,109.7]
[1645867255483,4.413,90.696,90.591,109.7]
[1645867256087,4.412,90.707,90.591,109.7]
[1645867256287,16.554,90.69,90.6,126.2527]
[1645867256487,4.412,90.707,90.602,109.7]
[1645867256792,3.912,90.707,90.603,0.25]
[1645867256985,1.85364634,90.708,90.607,66.09]
[1645867257187,1.61403908,90.722,90.618,109.7]
[1645867257386,1.61403908,90.722,90.62,175.79]
[1645867257589,16.5502,90.71,90.622,109.7]
[1645867257787,0.25,90.709,90.622,109.7]
[1645867258792,0.25,90.709,90.621,46.23286118]
[1645867259986,2.00349115,90.709,90.621,46.23286118]
[1645867262392,16.5512,90.7,90.621,46.23286118]
[1645867262591,10.0419714,90.699,90.621,46.23286118]
[1645867262792,8.08960706,90.699,90.621,46.23286118]
[1645867262990,1.85918018,90.698,90.621,46.23286118]
[1645867263191,8.08960706,90.699,90.621,46.23286118]
[1645867264095,16.5535,90.69,90.58,16.5557]
[1645867264294,1.81234892,90.688,90.561,76.0384]
[1645867264694,2.50002986,90.687,90.561,76.0384]
[1645867264892,109.7,90.686,90.561,76.0384]
[1645867265094,109.7,90.683,90.562,57.29758144]
[1645867265293,13.21,90.68,90.562,57.29758144]
[1645867265494,16.5621,90.66,90.562,57.29758144]
[1645867265694,54.17750706,90.659,90.562,57.29758144]
[1645867265895,1.48895712,90.658,90.562,57.29758144]
[1645867266716,34.34420753,90.639,90.562,57.29758144]
[1645867267116,1.93709953,90.638,90.562,57.29758144]
[1645867268319,1.95385453,90.657,90.562,57.29758144]
[1645867268518,16.5645,90.63,90.562,57.29758144]
[1645867268921,18.12572723,90.63,90.562,57.29758144]
[1645867269321,16.5645,90.63,90.562,57.29758144]
[1645867271120,36.02322192,90.649,90.562,57.29758144]
[1645867271323,1.64296733,90.648,90.562,57.29758144]
[1645867271723,1.64296733,90.648,90.563,109.7]
[1645867272320,2.0004331,90.658,90.563,109.7]
[1645867273322,30.63481551,90.657,90.563,109.7]
[1645867273522,1.81841874,90.656,90.57,126.2586]
[1645867274123,1.81841874,90.656,90.57,16.5586]
[1645867274724,0.25,90.655,90.57,16.5586]
[1645867275123,16.5603,90.65,90.562,57.29758144]
[1645867275323,1.69430895,90.649,90.562,57.29758144]
[1645867275523,4.414,90.648,90.562,57.29758144]
[1645867275923,4.414,90.653,90.562,57.29758144]
[1645867276125,1.48181614,90.649,90.562,57.29758144]
[1645867276325,4.414,90.648,90.562,57.29758144]
[1645867277228,1.48181614,90.649,90.562,57.29758144]
[1645867279528,1.48181614,90.649,90.563,109.7]
[1645867279930,18.52479628,90.67,90.572,66.09]
[1645867280129,18.52479628,90.67,90.581,109.7]
[1645867280327,4.414,90.671,90.581,109.7]
[1645867280528,1.75974936,90.678,90.581,109.7]
[1645867280727,1.75974936,90.678,90.583,109.7]
[1645867280927,1.75974936,90.678,90.582,49.48152824]
[1645867280928,1.75974936,90.678,90.591,109.7]
[1645867281128,1.65520392,90.689,90.591,109.7]
[1645867281329,1.65520392,90.689,90.592,3.11292427]
[1645867281828,41.87429748,90.688,90.593,2.86292427]
[1645867282033,2.00591372,90.687,90.594,0.25]
[1645867282429,2.00591372,90.687,90.595,2.86292427]
[1645867282633,2.00591372,90.687,90.61,16.5522]
[1645867282829,2.00591372,90.687,90.611,51.59283341]
[1645867283432,23.021,90.708,90.612,112.56292427]
[1645867283634,1.58627597,90.707,90.621,109.7]
[1645867283831,1.87462758,90.717,90.622,0.25]
[1645867284031,1.87462758,90.717,90.623,109.7]
[1645867284235,1.87462758,90.717,90.624,0.25]
[1645867284536,1.87462758,90.717,90.624,3.11292427]
[1645867284832,1.87462758,90.717,90.626,109.7]
[1645867285031,1.87462758,90.717,90.631,109.7]
[1645867285233,0.25,90.716,90.632,0.25]
[1645867285433,0.25,90.716,90.64,16.546]
[1645867285635,0.25,90.716,90.643,109.7]
[1645867286035,0.25,90.716,90.644,2.86292427]
[1645867286235,0.25,90.716,90.642,51.59283341]
[1645867289037,1.87462758,90.717,90.643,112.56292427]
[1645867289239,4.41,90.743,90.644,0.25]
[1645867289240,1.95595212,90.735,90.644,0.25]
[1645867289438,1.95595212,90.735,90.646,66.09]
[1645867289637,4.41,90.743,90.651,109.7]
[1645867289839,1.58595852,90.755,90.652,0.25]
[1645867290038,30.53518218,90.754,90.65,15.91]
[1645867290240,1.91597223,90.753,90.65,15.91]
[1645867290637,0.25,90.752,90.65,15.91]
[1645867291239,1.66236764,90.749,90.63,15.91]
[1645867291442,16.5459,90.73,90.64,16.5448]
[1645867291641,13.58642606,90.729,90.64,16.5448]
[1645867291840,1.6907297,90.728,90.64,16.5448]
[1645867293441,16.5472,90.72,90.64,16.5448]
[1645867293640,1.60137859,90.719,90.64,16.5448]
[1645867296546,1.60137859,90.719,90.625,2.86292427]
[1645867296847,32.14959704,90.709,90.625,2.86292427]
[1645867297046,1.88262471,90.708,90.625,2.86292427]
[1645867298848,1.86637423,90.708,90.625,2.86292427]
[1645867301171,1.86637423,90.708,90.605,23.99211069]
[1645867301172,16.5509,90.7,90.614,2.86292427]
[1645867301371,1.53990153,90.699,90.584,2.42276459]
[1645867301769,4.412,90.698,90.585,2.86292427]
[1645867302068,4.412,90.698,90.585,112.56292427]
[1645867302269,28.836,90.698,90.587,109.7]
[1645867302469,1.50975,90.697,90.587,109.7]
[1645867302671,1.50975,90.697,90.588,3.11292427]
[1645867303070,16.5563,90.68,90.591,109.7]
[1645867303470,16.5563,90.68,90.593,109.7]
[1645867303870,16.5563,90.68,90.594,2.86292427]
[1645867304070,41.63191986,90.68,90.594,2.86292427]
[1645867304472,41.63191986,90.68,90.601,59.07462147]
[1645867304670,16.5563,90.68,90.601,59.07462147]
[1645867308275,1.35970691,90.679,90.601,59.07462147]
[1645867308877,16.5563,90.68,90.602,109.7]
[1645867309078,1.47458534,90.694,90.61,126.2515]
[1645867309277,4.413,90.695,90.61,126.2515]
[1645867309678,23.6013,90.696,90.61,126.2515]
[1645867309878,52.8530245,90.696,90.61,126.2515]
[1645867310684,23.6013,90.696,90.611,2.28709926]
[1645867310980,23.6013,90.696,90.611,5.15002353]
[1645867311179,23.6013,90.696,90.612,2.86292427]
[1645867311580,32.42205733,90.695,90.612,2.86292427]
[1645867311885,32.42205733,90.695,90.61,142.8822]
[1645867312082,0.25,90.694,90.61,142.8822]
[1645867313482,26.25441016,90.698,90.612,109.7]
[1645867313682,24.424,90.698,90.63,16.5472]
[1645867313885,24.424,90.698,90.631,109.7]
[1645867314082,24.424,90.698,90.631,112.56292427]
[1645867314283,24.424,90.698,90.632,3.11292427]
[1645867314482,24.0803,90.719,90.632,2.86292427]
[1645867314685,24.0803,90.719,90.633,2.86292427]
[1645867314881,24.0803,90.719,90.634,0.25]
[1645867315283,24.0803,90.719,90.635,2.86292427]
[1645867315484,0.25,90.718,90.64,16.5459]
[1645867315683,0.25,90.718,90.641,109.7]
[1645867315886,0.25,90.718,90.641,112.56292427]
[1645867316085,0.25,90.718,90.642,2.86292427]
[1645867316789,0.25,90.718,90.651,109.7]
[1645867317686,0.25,90.718,90.653,109.7]
[1645867320490,0.25,90.718,90.66,16.5425]
[1645867321593,0.25,90.718,90.661,109.7]
[1645867322190,0.25,90.718,90.671,109.7]
[1645867322593,1.51223702,90.769,90.671,109.7]
[1645867322792,1.51223702,90.769,90.673,109.7]
[1645867323000,48.1939,90.773,90.687,109.7]
[1645867323196,48.1939,90.773,90.701,109.7]
[1645867323396,54.1293071,90.799,90.701,109.7]
[1645867323593,49.7213071,90.799,90.702,2.90029434]
[1645867323796,49.7213071,90.799,90.703,109.7]
[1645867323998,49.7213071,90.799,90.704,2.69245066]
[1645867324193,49.7213071,90.799,90.705,162.17917867]
[1645867324194,27.28591519,90.795,90.705,162.17917867]
[1645867324393,49.7213071,90.799,90.711,109.7]
[1645867324596,0.25,90.788,90.711,115.24]
[1645867324994,0.25,90.788,90.711,118.10292427]
[1645867325195,47.9031,90.799,90.712,2.78341164]
[1645867325394,47.9031,90.799,90.715,109.7]
[1645867325594,47.9031,90.799,90.723,109.7]
[1645867325993,47.9031,90.799,90.724,2.86292427]
[1645867326694,4.407,90.826,90.738,66.09]
[1645867326894,1.54128085,90.838,90.739,109.7]
[1645867327095,4.405,90.837,90.739,109.7]
[1645867327597,33.18267702,90.837,90.741,109.7]
[1645867327794,1.6345704,90.836,90.75,16.5252]
[1645867328194,1.6345704,90.836,90.751,109.7]
[1645867328495,33.18267702,90.837,90.751,109.7]
[1645867328694,0.25,90.836,90.76,16.5245]
[1645867328896,47.3003,90.839,90.761,109.7]
[1645867329297,4.405,90.857,90.767,109.7]
[1645867329496,18.72502286,90.874,90.762,3.11292427]
[1645867329497,48.4082,90.867,90.771,111.9677327]
[1645867329696,31.71260975,90.859,90.79,16.5176]
[1645867329896,48.4082,90.867,90.791,109.7]
[1645867330796,0.25,90.866,90.792,56.10218003]
[1645867330999,0.25,90.866,90.793,109.7]
[1645867331602,0.25,90.866,90.801,109.7]
[1645867331798,48.4082,90.867,90.801,109.7]
[1645867332599,48.4082,90.867,90.795,2.6601829]
[1645867332800,48.4082,90.867,90.796,0.25]
[1645867332999,48.4082,90.867,90.801,112.56292427]
[1645867333304,16.5141,90.91,90.812,3.0168375]
[1645867334102,46.1483,90.909,90.814,109.7]
[1645867334498,46.1483,90.909,90.821,109.7]
[1645867334900,46.1483,90.909,90.822,2.93280525]
[1645867335101,46.1483,90.909,90.823,109.95]
[1645867335302,46.1483,90.909,90.824,2.35008012]
[1645867335502,46.1483,90.909,90.825,0.25]
[1645867335703,16.5107,90.93,90.83,16.5121]
[1645867335902,16.5107,90.93,90.841,109.7]
[1645867336710,28.66023488,90.922,90.842,53.92665575]
[1645867336908,16.5108,90.92,90.842,53.92665575]
[1645867337112,1.60018407,90.919,90.842,53.92665575]
[1645867337303,1.60018407,90.919,90.843,109.7]
[1645867337703,1.60018407,90.919,90.842,53.92665575]
[1645867338103,16.5131,90.91,90.842,53.92665575]
[1645867338303,1.36627583,90.909,90.842,53.92665575]
[1645867338504,8.31401739,90.908,90.842,53.92665575]
[1645867339504,1.86518579,90.917,90.842,53.92665575]
[1645867340507,16.5126,90.91,90.842,53.92665575]
[1645867340711,1.84474808,90.909,90.842,53.92665575]
[1645867341530,4.401,90.915,90.842,53.92665575]
[1645867341730,6.25659222,90.915,90.842,53.92665575]
[1645867342131,1.85559222,90.915,90.842,53.92665575]
[1645867343537,1.69189929,90.92,90.842,53.92665575]
[1645867344134,1.69189929,90.92,90.843,109.7]
[1645867344334,24.9655,90.921,90.843,109.7]
[1645867344539,26.51022296,90.921,90.843,109.7]
[1645867345136,24.9655,90.921,90.843,109.7]
[1645867345536,24.9655,90.921,90.844,2.86292427]
[1645867345736,23.526,90.936,90.846,66.09]
[1645867345941,23.526,90.936,90.851,109.7]
[1645867346135,23.526,90.936,90.852,2.81260964]
[1645867347539,23.526,90.936,90.87,16.5048]
[1645867348135,23.526,90.936,90.871,47.96114225]
[1645867348335,27.67551554,90.936,90.871,47.96114225]
[1645867348536,1.75688016,90.935,90.871,47.96114225]
[1645867350438,16.509,90.93,90.871,47.96114225]
[1645867350838,1.83760462,90.929,90.871,47.96114225]
[1645867352641,16.509,90.93,90.871,47.96114225]
[1645867353142,23.526,90.936,90.871,47.96114225]
[1645867353341,1.45863337,90.95,90.871,47.96114225]
[1645867353543,1.49803869,91.042,90.943,2.86292427]
[1645867353743,1.49803869,91.042,90.904,5.0]
[1645867353744,47.9647,91.109,90.967,11.48799063]
[1645867353946,47.9647,91.109,90.981,109.7]
[1645867354141,47.9647,91.109,90.983,109.7]
[1645867354343,47.9647,91.109,90.984,7.24859006]
[1645867354541,1.55365765,91.108,90.984,5.71751433]
[1645867354744,1.55365765,91.108,90.985,2.86292427]
[1645867355043,54.26806339,91.107,90.986,4.27220597]
[1645867355241,5.95795548,91.106,91.0,15.91]
[1645867355443,109.7,91.105,91.001,2.45451604]
[1645867355645,4.393,91.104,91.001,2.45451604]
[1645867356445,4.393,91.104,90.991,3.03476399]
[1645867356745,4.393,91.079,90.971,2.60727045]
[1645867356946,111.40150621,91.077,90.966,1.22604777]
[1645867357144,1.85703249,91.074,90.951,2.6221695]
[1645867357348,16.4917,91.07,90.97,15.91]
[1645867357646,16.4917,91.07,90.971,2.72884881]
[1645867357845,1.4215553,91.069,90.971,2.72884881]
[1645867358045,4.394,91.068,90.97,15.91]
[1645867358244,66.09,91.067,90.97,15.91]
[1645867358446,5.96278975,91.066,90.97,18.82997212]
[1645867358648,4.394,91.066,90.971,3.02801282]
[1645867358946,1.49655661,91.064,90.971,3.02801282]
[1645867359146,4.394,91.063,90.971,3.02801282]
[1645867359545,46.22365116,91.062,90.972,6.83393339]
[1645867359949,46.22365116,91.062,90.971,3.02801282]
[1645867360346,6.1656944,91.061,90.971,3.02801282]
[1645867360546,1.7716944,91.061,90.971,3.02801282]
[1645867360847,16.4901,91.06,90.971,3.02801282]
[1645867361045,1.59552877,91.059,90.971,3.02801282]
[1645867361246,4.394,91.058,90.971,3.02801282]
[1645867361646,109.7,91.055,90.97,15.91]
[1645867361848,66.09,91.041,90.909,2.75308379]
[1645867362049,175.79,91.029,90.881,2.32445701]
[1645867362247,1.5436679,91.028,90.851,66.09]
[1645867362447,158.16431288,91.027,90.872,5.17781874]
[1645867362650,1.4972597,91.026,90.881,109.7]
[1645867362846,4.397,91.025,90.882,2.7574731]
[1645867363046,114.097,91.025,90.882,2.7574731]
[1645867363350,1.7581087,91.024,90.882,2.7574731]
[1645867363548,50.70546207,90.999,90.891,4.4680624]
[1645867363747,4.398,90.998,90.891,4.4680624]
[1645867364547,16.5018,90.99,90.891,2.73188219]
[1645867364946,4.398,90.989,90.891,2.73188219]
[1645867365151,5.89304121,90.989,90.891,2.73188219]
[1645867365347,5.89304121,90.989,90.871,5.82469725]
[1645867365548,4.398,90.989,90.872,6.09002838]
[1645867365748,6.07977309,90.997,90.872,6.09002838]
[1645867366454,16.5036,90.98,90.88,16.5039]
[1645867366954,58.76339495,90.979,90.881,2.37445388]
[1645867368856,58.76339495,90.979,90.89,16.5025]
[1645867369053,58.76339495,90.979,90.891,3.17751357]
[1645867371856,58.76339495,90.979,90.9,16.5006]
[1645867372055,58.76339495,90.979,90.901,2.36597361]
[1645867376185,58.76339495,90.979,90.881,2.3025569]
[1645867376992,16.5047,90.97,90.881,2.3025569]
[1645867377186,111.21058065,90.969,90.881,2.3025569]
[1645867377386,6.03144411,90.968,90.871,2.56503234]
[1645867377587,1.36203994,90.966,90.841,2.8573544]
[1645867377788,4.4,90.965,90.842,7.26292427]
[1645867377989,4.4,90.965,90.843,109.7]
[1645867378188,13.21,90.97,90.846,5.05608035]
[1645867378387,13.21,90.97,90.85,13.21]
[1645867378388,4.4,90.969,90.85,13.21]
[1645867378586,16.5087,90.95,90.861,109.7]
[1645867378788,4.4,90.969,90.862,1.8579186]
[1645867378988,58.76339495,90.979,90.863,4.399]
[1645867379190,4.399,90.978,90.862,4.97145494]
[1645867379591,16.5053,90.97,90.871,109.7]
[1645867379793,58.76339495,90.979,90.881,109.7]
[1645867379990,58.76339495,90.979,90.883,5.05608035]
[1645867380193,58.76339495,90.979,90.884,3.12314846]
[1645867380390,4.398,91.021,90.884,3.12314846]
[1645867380693,16.4965,91.02,90.893,66.09]
[1645867380891,16.4965,91.02,90.901,109.7]
[1645867381090,4.398,91.019,90.902,2.96309874]
[1645867381495,56.91121931,90.997,90.903,111.5579186]
[1645867381695,56.91121931,90.997,90.904,2.65136459]